[Event "SVK Extraliga 2019-20"]
[Site "Slovakia"]
[Date "2020.01.19"]
[Round "6.3"]
[White "Kriebel, Tadeas"]
[Black "Leniart, Arkadiusz"]
[Result "1/2-1/2"]
[ECO "E04"]
[WhiteElo "2517"]
[BlackElo "2505"]
[Annotator "ChessBase"]
[PlyCount "95"]
[EventDate "2019.10.19"]
[EventType "team-tourn"]
[EventCountry "SVK"]
[SourceTitle "playchess.com"]
[Source "ChessBase"]
[SourceQuality "1"]
[WhiteTeam "Snina"]
[BlackTeam "Prakovce"]
[TimeControl "40/5400+30:1800+30"]

1. d4 {[%emt 0:00:00]} Nf6 {[%emt 0:04:31]} 2. c4 {[%emt 0:00:00]} e6 {[%emt 0:00:05]} 3. g3 {[%emt 0:00:00]} d5 {[%emt 0:00:08]} 4. Bg2 {[%emt 0:00:00]} dxc4 {[%emt 0:00:27]} 5. Nf3 {[%emt 0:00:15]} Nc6 {[%emt 0:00:19]} 6. Qa4 {[%emt 0:00:37]} Bb4+ {[%emt 0:03:09]} 7. Bd2 {[%emt 0:07:17]} Nd5 {[%emt 0:04:26]} 8. Bxb4 {[%emt 0:00:25]} Ndxb4 {[%emt 0:00:07]} 9. O-O {[%emt 0:00:11]} Rb8 {[%emt 0:05:56]} 10. Nc3 {[%emt 0:00:13]} Bd7 {[%emt 0:16:49]} 11. a3 {[%emt 0:07:12]} b5 {[%emt 0:04:56]} 12. Nxb5 {[%emt 0:00:21]} a6 {[%emt 0:12:55]} 13. axb4 {[%emt 0:11:56]} axb5 {[%emt 0:05:39]} 14. Qa3 {[%emt 0:00:05]} Qe7 {[%emt 0:02:45]} 15. b3 {[%emt 0:00:09]} cxb3 {[%emt 0:05:08]} 16. Qxb3 {[%emt 0:00:20]} Qxb4 {[%emt 0:00:59]} 17. Qxb4 {[%emt 0:00:17]} Nxb4 {[%emt 0:00:05]} 18. Rfc1 {[%emt 0:05:56]} Nc6 {[%emt 0:08:41]} 19. e3 {[%emt 0:01:24]} Ke7 {[%emt 0:02:20]} 20. Nd2 {[%emt 0:00:38]} Rb6 {[%emt 0:00:57]} 21. Nb3 {[%emt 0:02:04]} Rc8 {[%emt 0:00:37]} 22. Kf1 {[%emt 0:03:20]} Nd8 {[%emt 0:04:49]} 23. Ke2 {[%emt 0:02:01]} Bc6 {[%emt 0:02:09]} 24. e4 {[%emt 0:01:11]} b4 {[%emt 0:03:17]} 25. Ke3 {[%emt 0:01:33]} Nb7 {[%emt 0:01:32]} 26. Ra7 {[%emt 0:04:21]} Nd6 {[%emt 0:00:58]} 27. d5 {[%emt 0:06:25]} exd5 {[%emt 0:03:16]} 28. exd5 {[%emt 0:00:29]} Nb5 {[%emt 0:01:30]} 29. Ra5 {[%emt 0:03:18]} Bd7 {[%emt 0:00:07]} 30. Nc5 {[%emt 0:01:59]} Re8 {[%emt 0:00:39]} 31. Kd2 {[%emt 0:01:17]} Nc3 {[%emt 0:02:48]} 32. Nd3 {[%emt 0:03:59]} Kd6 {[%emt 0:00:21]} 33. Nxb4 {[%emt 0:00:50]} Ne4+ {[%emt 0:01:02]} 34. Bxe4 {[%emt 0:00:07]} Rxe4 {[%emt 0:00:22]} 35. Nd3 {[%emt 0:00:40]} Bb5 {[%emt 0:01:27]} 36. Rc5 {[%emt 0:13:33]} Bxd3 {[%emt 0:00:31]} 37. Kxd3 {[%emt 0:00:12]} Reb4 {[%emt 0:00:11]} 38. Rc3 {[%emt 0:01:51]} Rb2 {[%emt 0:01:09]} 39. Ke3 {[%emt 0:00:28]} R2b5 {[%emt 0:00:22]} 40. Rxb5 {[%emt 0:00:18]} Rxb5 {[%emt 0:00:05]} 41. Rc6+ {[%emt 0:30:10]} Kd7 {[%emt 0:31:04]} 42. Ke4 {[%emt 0:04:30]} Rb2 {[%emt 0:00:06]} 43. Ke3 {[%emt 0:00:07]} Rb1 {[%emt 0:00:08]} 44. h4 {[%emt 0:00:56]} Rd1 {[%emt 0:00:16]} 45. Rc5 {[%emt 0:00:40]} Kd6 {[%emt 0:00:34]} 46. Rc6+ {[%emt 0:00:04]} Kd7 {[%emt 0:00:07]} 47. Rc5 {[%emt 0:00:04]} Kd6 {[%emt 0:00:06]} 48. Ke4 {Ke5+} 1/2-1/2

[Event "SVK Extraliga 2019-20"]
[Site "Slovakia"]
[Date "2020.01.19"]
[Round "6.3"]
[White "Horvath, Csaba"]
[Black "Karas, Marek"]
[Result "1-0"]
[ECO "A05"]
[WhiteElo "2514"]
[BlackElo "2232"]
[Annotator "ChessBase"]
[PlyCount "89"]
[EventDate "2019.10.19"]
[EventType "team-tourn"]
[EventCountry "SVK"]
[SourceTitle "playchess.com"]
[Source "ChessBase"]
[SourceQuality "1"]
[WhiteTeam "Podhajska"]
[BlackTeam "Bratislava"]
[TimeControl "40/5400+30:1800+30"]

1. Nf3 {[%emt 0:00:00]} Nf6 {[%emt 0:00:00]} 2. c4 {[%emt 0:00:00]} e6 {[%emt 0:00:22]} 3. g3 {[%emt 0:00:14]} d5 {[%emt 0:01:25]} 4. b3 {[%emt 0:00:14]} b6 {[%emt 0:02:29]} 5. Bg2 {[%emt 0:02:40]} Bb7 {[%emt 0:00:17]} 6. cxd5 {[%emt 0:01:10]} exd5 {[%emt 0:01:48]} 7. O-O {[%emt 0:04:31]} Bd6 {[%emt 0:03:28]} 8. Bb2 {[%emt 0:05:18]} O-O {[%emt 0:01:30]} 9. Nc3 {[%emt 0:00:32]} a6 {[%emt 0:06:25]} 10. e3 {[%emt 0:11:14]} Re8 {[%emt 0:03:59]} 11. Qc2 {[%emt 0:00:30]} Nbd7 {[%emt 0:06:12]} 12. Rac1 {[%emt 0:00:56]} Nf8 {[%emt 0:05:46]} 13. Nd4 {[%emt 0:16:38]} g6 {[%emt 0:04:36]} 14. Na4 {[%emt 0:07:55]} c5 {[%emt 0:02:16]} 15. Ne2 {[%emt 0:02:18]} N8d7 {[%emt 0:04:57]} 16. d4 {[%emt 0:02:42]} Rc8 {[%emt 0:03:01]} 17. dxc5 {[%emt 0:02:55]} bxc5 {[%emt 0:00:31]} 18. Rfd1 {[%emt 0:00:09]} Qe7 {[%emt 0:07:01]} 19. Nec3 {[%emt 0:08:07]} Qe6 {[%emt 0:03:47]} 20. Qd2 {[%emt 0:00:32]} Ne5 {[%emt 0:07:27]} 21. Nb6 {[%emt 0:00:41]} d4 {[%emt 0:06:37]} 22. Bxb7 {[%emt 0:01:30]} Rb8 {[%emt 0:02:09]} 23. exd4 {[%emt 0:04:39]} cxd4 {[%emt 0:01:30]} 24. Qxd4 {[%emt 0:06:19]} Bc7 {[%emt 0:04:24]} 25. Qf4 {[%emt 0:08:41]} Bxb6 {[%emt 0:03:07]} 26. Bd5 {[%emt 0:04:11]} Qf5 {[%emt 0:05:36]} 27. Qxf5 {[%emt 0:01:19]} gxf5 {[%emt 0:00:01]} 28. Na4 {[%emt 0:03:55]} f4 {[%emt 0:04:20]} 29. gxf4 {[%emt 0:01:15]} Neg4 {[%emt 0:00:44]} 30. Nxb6 {[%emt 0:00:49]} Rxb6 {[%emt 0:00:02]} 31. Bf3 {[%emt 0:01:22]} h5 {[%emt 0:01:12]} 32. h3 {[%emt 0:00:14]} Nh6 {[%emt 0:00:11]} 33. Rc5 {[%emt 0:01:10]} Kh7 {[%emt 0:00:51]} 34. Kh2 {[%emt 0:00:09]} Ne4 {[%emt 0:00:48]} 35. Re5 {[%emt 0:00:57]} Rxe5 {[%emt 0:00:37]} 36. fxe5 {[%emt 0:00:02]} f5 {[%emt 0:00:49]} 37. Rd7+ {[%emt 0:00:43]} Kg6 {[%emt 0:00:19]} 38. Bd4 {[%emt 0:00:40]} Rc6 {[%emt 0:00:31]} 39. Bxe4 {[%emt 0:01:05]} fxe4 {[%emt 0:00:01]} 40. Rd6+ {[%emt 0:00:12]} Rxd6 {[%emt 0:00:05]} 41. exd6 {[%emt 0:30:05]} Kf7 {[%emt 0:30:09]} 42. Bc5 {[%emt 0:00:17]} Ke6 {[%emt 0:00:15]} 43. Kg3 {[%emt 0:00:08]} Ng8 {[%emt 0:00:26]} 44. Kf4 {[%emt 0:00:16]} Nf6 {[%emt 0:00:04]} 45. b4 {[%emt 0:00:16]} 1-0

[Event "SVK Extraliga 2019-20"]
[Site "Slovakia"]
[Date "2020.01.19"]
[Round "6.3"]
[White "Nayhebaver, Martin"]
[Black "Haring, Filip"]
[Result "1-0"]
[ECO "E53"]
[WhiteElo "2473"]
[BlackElo "2307"]
[Annotator "ChessBase"]
[PlyCount "63"]
[EventDate "2019.10.19"]
[EventType "team-tourn"]
[EventCountry "SVK"]
[SourceTitle "playchess.com"]
[Source "ChessBase"]
[SourceQuality "1"]
[WhiteTeam "Košice"]
[BlackTeam "Liptovska"]
[TimeControl "40/5400+30:1800+30"]

1. d4 {[%emt 0:00:00]} Nf6 {[%emt 0:00:00]} 2. c4 {[%emt 0:00:22]} e6 {[%emt 0:00:07]} 3. Nc3 {[%emt 0:00:30]} Bb4 {[%emt 0:00:45]} 4. e3 {[%emt 0:00:41]} O-O {[%emt 0:00:39]} 5. Bd3 {[%emt 0:00:22]} d5 {[%emt 0:00:41]} 6. Nf3 {[%emt 0:00:47]} c5 {[%emt 0:00:54]} 7. O-O {[%emt 0:00:37]} cxd4 {[%emt 0:04:24]} 8. exd4 {[%emt 0:00:21]} dxc4 {[%emt 0:00:54]} 9. Bxc4 {[%emt 0:00:07]} b6 {[%emt 0:00:57]} 10. Bg5 {[%emt 0:01:01]} Bb7 {[%emt 0:03:43]} 11. Qe2 {[%emt 0:00:30]} Be7 {[%emt 0:07:00]} 12. Rad1 {[%emt 0:06:36]} Nbd7 {[%emt 0:15:10]} 13. Rfe1 {[%emt 0:17:22]} Bb4 {[%emt 0:03:19]} 14. Ne5 {[%emt 0:12:02]} Qc8 {[%emt 0:06:40]} 15. Nxd7 {[%emt 0:17:02]} Nxd7 {[%emt 0:01:59]} 16. Bb3 {[%emt 0:01:39]} Re8 {[%emt 0:11:14]} 17. Qg4 {[%emt 0:01:42]} Nf8 {[%emt 0:04:32]} 18. Re3 {[%emt 0:03:23]} Bxc3 {[%emt 0:08:15]} 19. Rxc3 {[%emt 0:02:17]} Qd7 {[%emt 0:00:13]} 20. d5 {[%emt 0:02:08]} exd5 {[%emt 0:13:40]} 21. Qxd7 {[%emt 0:01:00]} Nxd7 {[%emt 0:00:07]} 22. Ba4 {[%emt 0:00:38]} Nc5 {[%emt 0:04:30]} 23. Bxe8 {[%emt 0:00:37]} Rxe8 {[%emt 0:00:07]} 24. Be3 {[%emt 0:02:27]} Ne6 {[%emt 0:00:15]} 25. f3 {[%emt 0:01:30]} Kf8 {[%emt 0:01:44]} 26. Bd4 {[%emt 0:03:12]} Rd8 {[%emt 0:05:42]} 27. f4 {[%emt 0:02:44]} Nxf4 {[%emt 0:03:34]} 28. Rc7 {[%emt 0:00:35]} Bc8 {[%emt 0:01:17]} 29. Rxa7 {[%emt 0:00:28]} Bg4 {[%emt 0:00:28]} 30. Bxb6 {[%emt 0:01:18]} Rb8 {[%emt 0:00:43]} 31. Bc5+ {[%emt 0:00:19]} Kg8 {[%emt 0:00:13]} 32. Rd2 {[%emt 0:00:24]} 1-0

[Event "SVK Extraliga 2019-20"]
[Site "Slovakia"]
[Date "2020.01.19"]
[Round "6.3"]
[White "Rigo, Zsolt"]
[Black "Ftacnik, Lubomir"]
[Result "0-1"]
[ECO "B90"]
[WhiteElo "2401"]
[BlackElo "2516"]
[Annotator "ChessBase"]
[PlyCount "60"]
[EventDate "2019.10.19"]
[EventType "team-tourn"]
[EventCountry "SVK"]
[SourceTitle "playchess.com"]
[Source "ChessBase"]
[SourceQuality "1"]
[WhiteTeam "Streda"]
[BlackTeam "Slovan"]
[TimeControl "40/5400+30:1800+30"]

1. e4 {[%emt 0:00:00]} c5 {[%emt 0:00:00]} 2. Nf3 {[%emt 0:00:00]} d6 {[%emt 0:00:00]} 3. d4 {[%emt 0:00:00]} cxd4 {[%emt 0:00:00]} 4. Nxd4 {[%emt 0:01:28]} Nf6 {[%emt 0:00:05]} 5. Nc3 {[%emt 0:00:07]} a6 {[%emt 0:00:10]} 6. a4 {[%emt 0:00:54]} g6 {[%emt 0:03:23]} 7. Be2 {[%emt 0:02:44]} Bg7 {[%emt 0:00:23]} 8. O-O {[%emt 0:00:27]} O-O {[%emt 0:00:10]} 9. Re1 {[%emt 0:04:36]} Nc6 {[%emt 0:03:33]} 10. Nb3 {[%emt 0:00:09]} Be6 {[%emt 0:02:30]} 11. Bf1 {[%emt 0:05:59]} Rc8 {[%emt 0:04:05]} 12. Nd5 {[%emt 0:11:56]} Bxd5 {[%emt 0:10:09]} 13. exd5 {[%emt 0:00:30]} Nb4 {[%emt 0:00:10]} 14. c4 {[%emt 0:00:12]} b5 {[%emt 0:12:54]} 15. Qd2 {[%emt 0:04:55]} bxc4 {[%emt 0:02:41]} 16. Qxb4 {[%emt 0:00:07]} cxb3 {[%emt 0:00:20]} 17. Qxb3 {[%emt 0:00:05]} Nd7 {[%emt 0:14:49]} 18. a5 {[%emt 0:20:10]} Rb8 {[%emt 0:11:44]} 19. Qa3 {[%emt 0:00:47]} Nc5 {[%emt 0:01:20]} 20. Bc4 {[%emt 0:00:04]} Qd7 {[%emt 0:02:55]} 21. h3 {[%emt 0:06:33]} Qf5 {[%emt 0:03:12]} 22. Ra2 {[%emt 0:01:09]} Rfc8 {[%emt 0:09:39]} 23. Be3 {[%emt 0:14:03]} Qe4 {[%emt 0:02:15]} 24. b3 {[%emt 0:01:42]} Nd3 {[%emt 0:03:23]} 25. Rd1 {[%emt 0:03:16]} Nb2 {[%emt 0:02:54]} 26. Rxb2 {[%emt 0:08:03]} Bxb2 {[%emt 0:00:08]} 27. Qa2 {[%emt 0:00:07]} Rxc4 {[%emt 0:04:35]} 28. bxc4 {[%emt 0:00:02]} Be5 {[%emt 0:00:07]} 29. Qa4 {[%emt 0:06:54]} Rb1 {[%emt 0:01:14]} 30. Bh6 {[%emt 0:03:31]} Qe1+ {[%emt 0:00:07]} 0-1

[Event "SVK Extraliga 2019-20"]
[Site "Slovakia"]
[Date "2020.01.20"]
[Round "6.4"]
[White "Stohl, Igor"]
[Black "Bernasek, Jan"]
[Result "1/2-1/2"]
[ECO "D32"]
[WhiteElo "2473"]
[BlackElo "2495"]
[Annotator "ChessBase"]
[PlyCount "22"]
[EventDate "2019.10.19"]
[EventType "team-tourn"]
[EventCountry "SVK"]
[SourceTitle "playchess.com"]
[Source "ChessBase"]
[SourceQuality "1"]
[WhiteTeam "Modra"]
[BlackTeam "Zilina"]
[WhiteTeamCountry "SVK"]
[BlackTeamCountry "CZE"]
[TimeControl "40/5400+30:1800+30"]

1. d4 {[%emt 0:00:04]} d5 {[%emt 0:00:00]} 2. c4 {[%emt 0:00:37]} e6 {[%emt 0:00:00]} 3. Nc3 {[%emt 0:00:34]} c5 {[%emt 0:00:26]} 4. cxd5 {[%emt 0:02:20]} cxd4 {[%emt 0:00:11]} 5. Qa4+ {[%emt 0:05:47]} Bd7 {[%emt 0:00:37]} 6. Qxd4 {[%emt 0:00:25]} exd5 {[%emt 0:00:27]} 7. Nf3 {[%emt 0:01:28]} Nc6 {[%emt 0:02:56]} 8. Qd1 {[%emt 0:02:05]} Nf6 {[%emt 0:04:20]} 9. e3 {[%emt 0:05:02]} Bb4 {[%emt 0:06:37]} 10. Bd2 {[%emt 0:04:36]} O-O {[%emt 0:01:38]} 11. Be2 {[%emt 0:02:02]} a6 {[%emt 0:02:48]} 1/2-1/2

[Event "SVK Extraliga 2019-20"]
[Site "Slovakia"]
[Date "2020.01.19"]
[Round "6.4"]
[White "Malinovsky, Karel"]
[Black "Bagi, Mate"]
[Result "0-1"]
[ECO "C92"]
[WhiteElo "2454"]
[BlackElo "2466"]
[Annotator "ChessBase"]
[PlyCount "182"]
[EventDate "2019.10.19"]
[EventType "team-tourn"]
[EventCountry "SVK"]
[SourceTitle "playchess.com"]
[Source "ChessBase"]
[SourceQuality "1"]
[WhiteTeam "Slovan"]
[BlackTeam "Streda"]
[TimeControl "40/5400+30:1800+30"]

1. e4 {[%emt 0:00:00]} e5 {[%emt 0:00:08]} 2. Nf3 {[%emt 0:00:00]} Nc6 {[%emt 0:00:13]} 3. Bb5 {[%emt 0:00:00]} a6 {[%emt 0:00:37]} 4. Ba4 {[%emt 0:00:01]} Nf6 {[%emt 0:00:41]} 5. O-O {[%emt 0:00:07]} Be7 {[%emt 0:00:22]} 6. Re1 {[%emt 0:00:20]} b5 {[%emt 0:00:20]} 7. Bb3 {[%emt 0:00:06]} d6 {[%emt 0:03:08]} 8. c3 {[%emt 0:00:26]} O-O {[%emt 0:00:16]} 9. h3 {[%emt 0:00:10]} a5 {[%emt 0:06:48]} 10. d4 {[%emt 0:05:38]} a4 {[%emt 0:00:30]} 11. Bc2 {[%emt 0:00:08]} Bd7 {[%emt 0:00:42]} 12. Bd3 {[%emt 0:04:35]} Qb8 {[%emt 0:04:11]} 13. Na3 {[%emt 0:05:21]} exd4 {[%emt 0:03:04]} 14. cxd4 {[%emt 0:03:11]} Nb4 {[%emt 0:02:17]} 15. Bf1 {[%emt 0:06:47]} d5 {[%emt 0:06:03]} 16. Ne5 {[%emt 0:08:25]} Be8 {[%emt 0:03:31]} 17. Bg5 {[%emt 0:09:22]} dxe4 {[%emt 0:06:37]} 18. Bxf6 {[%emt 0:04:22]} Bxf6 {[%emt 0:00:19]} 19. Rxe4 {[%emt 0:00:12]} Qb7 {[%emt 0:07:39]} 20. Qe1 {[%emt 0:11:50]} Nd5 {[%emt 0:05:37]} 21. Nc2 {[%emt 0:05:20]} Rd8 {[%emt 0:07:57]} 22. g3 {[%emt 0:05:25]} Bd7 {[%emt 0:09:29]} 23. Nxd7 {[%emt 0:01:50]} Rxd7 {[%emt 0:00:05]} 24. Na3 {[%emt 0:01:17]} c6 {[%emt 0:00:56]} 25. Bg2 {[%emt 0:01:08]} Qb6 {[%emt 0:02:00]} 26. Rd1 {[%emt 0:01:37]} g6 {[%emt 0:08:03]} 27. Nc2 {[%emt 0:02:38]} Rfd8 {[%emt 0:02:52]} 28. Re8+ {[%emt 0:07:19]} Kg7 {[%emt 0:00:08]} 29. Rxd8 {[%emt 0:00:06]} Rxd8 {[%emt 0:03:43]} 30. b3 {[%emt 0:03:02]} axb3 {[%emt 0:02:18]} 31. axb3 {[%emt 0:00:52]} Ne7 {[%emt 0:02:13]} 32. Qe4 {[%emt 0:07:56]} c5 {[%emt 0:01:49]} 33. d5 {[%emt 0:00:08]} Nf5 {[%emt 0:00:28]} 34. Ne3 {[%emt 0:02:04]} Nxe3 35. Qxe3 {[%emt 0:00:09]} Qd6 {[%emt 0:02:00]} 36. Bf1 {[%emt 0:00:50]} Bd4 {[%emt 0:02:53]} 37. Qf3 {[%emt 0:00:45]} Qxd5 {[%emt 0:01:06]} 38. Qxd5 {[%emt 0:00:30]} Rxd5 {[%emt 0:00:03]} 39. Kg2 {[%emt 0:00:26]} b4 {[%emt 0:01:49]} 40. Rd2 {[%emt 0:01:57]} Rd7 {[%emt 0:01:58]} 41. h4 {[%emt 0:32:31]} Ra7 {[%emt 0:32:27]} 42. Bc4 {[%emt 0:00:32]} Bc3 {[%emt 0:00:00]} 43. Re2 {[%emt 0:00:00]} Rd7 {[%emt 0:00:00]} 44. Ra2 {[%emt 0:00:00]} h6 {[%emt 0:00:00]} 45. Re2 {[%emt 0:00:00]} Kf6 {[%emt 0:00:00]} 46. Kf3 {[%emt 0:00:00]} h5 {[%emt 0:00:00]} 47. Kg2 {[%emt 0:00:00]} Rd4 {[%emt 0:00:00]} 48. Re3 {[%emt 0:00:00]} Rd7 {[%emt 0:00:00]} 49. Re2 {[%emt 0:00:00]} Ra7 {[%emt 0:00:00]} 50. Kf3 {[%emt 0:00:00]} Bd4 {[%emt 0:00:00]} 51. Kg2 {[%emt 0:00:00]} Ra1 {[%emt 0:00:00]} 52. Re4 {[%emt 0:00:00]} Ra7 {[%emt 0:00:00]} 53. Re2 {[%emt 0:00:00]} Kg7 {[%emt 0:00:00]} 54. Re8 {[%emt 0:00:00]} Rd7 {[%emt 0:00:00]} 55. Bb5 {[%emt 0:00:00]} Rc7 {[%emt 0:00:00]} 56. Bc4 {[%emt 0:00:00]} Bf6 {[%emt 0:00:00]} 57. Bd5 {[%emt 0:00:00]} Rd7 {[%emt 0:00:00]} 58. Bc4 {[%emt 0:00:00]} Rd2 {[%emt 0:00:00]} 59. Re2 {[%emt 0:00:00]} Rd4 {[%emt 0:00:00]} 60. Re8 {[%emt 0:00:00]} Rd7 {[%emt 0:00:00]} 61. Rc8 {[%emt 0:01:23]} Bd4 {[%emt 0:00:00]} 62. Re8 {[%emt 0:01:03]} Kf6 {[%emt 0:00:00]} 63. Bb5 {[%emt 0:00:28]} Ra7 {[%emt 0:00:00]} 64. Bc4 {[%emt 0:00:13]} Be5 {[%emt 0:00:00]} 65. Rc8 {[%emt 0:02:15]} Bd4 {[%emt 0:00:00]} 66. Re8 {[%emt 0:01:08]} Kg7 {[%emt 0:00:00]} 67. Kf3 {[%emt 0:00:27]} Bf6 {[%emt 0:00:00]} 68. Rc8 {[%emt 0:00:53]} Be7 {[%emt 0:00:00]} 69. Rb8 {[%emt 0:00:39]} Rd7 {[%emt 0:00:00]} 70. Bb5 {[%emt 0:00:48]} Ra7 {[%emt 0:00:00]} 71. Bc4 {[%emt 0:00:14]} Bd6 {[%emt 0:00:00]} 72. Rb6 {[%emt 0:01:10]} Be5 {[%emt 0:00:15]} 73. Bd5 {[%emt 0:01:55]} Bd4 {[%emt 0:06:25]} 74. Rb7 {[%emt 0:00:47]} Rxb7 {[%emt 0:00:08]} 75. Bxb7 {[%emt 0:00:05]} c4 {[%emt 0:00:08]} 76. Bd5 {[%emt 0:01:16]} c3 {[%emt 0:02:44]} 77. Be4 {[%emt 0:00:26]} f6 {[%emt 0:01:36]} 78. Bc2 {[%emt 0:00:56]} g5 {[%emt 0:00:19]} 79. g4 {[%emt 0:01:21]} gxh4 {[%emt 0:02:00]} 80. gxh5 {[%emt 0:00:08]} f5 {[%emt 0:02:08]} 81. Bxf5 {[%emt 0:00:50]} Kf6 {[%emt 0:00:04]} 82. Bc2 {[%emt 0:00:44]} Kg5 {[%emt 0:00:12]} 83. Bg6 {[%emt 0:01:45]} Be5 {[%emt 0:01:13]} 84. Bd3 {[%emt 0:01:04]} Kxh5 {[%emt 0:00:20]} 85. Kg2 {[%emt 0:00:33]} Kg4 {[%emt 0:00:23]} 86. Be2+ {[%emt 0:00:29]} Kf4 {[%emt 0:00:12]} 87. Bd1 {[%emt 0:00:23]} Bd4 {[%emt 0:00:03]} 88. Bc2 {[%emt 0:00:38]} Bxf2 {[%emt 0:01:42]} 89. Kxf2 {[%emt 0:00:22]} h3 {[%emt 0:00:04]} 90. Bh7 {[%emt 0:00:17]} h2 {[%emt 0:00:07]} 91. Kg2 {[%emt 0:00:04]} Ke3 {[%emt 0:00:04]} 0-1

[Event "SVK Extraliga 2019-20"]
[Site "Slovakia"]
[Date "2020.01.19"]
[Round "6.4"]
[White "Piesik, Piotr"]
[Black "Matejovic, Juraj"]
[Result "1-0"]
[ECO "E92"]
[WhiteElo "2419"]
[BlackElo "2216"]
[Annotator "NA"]
[PlyCount "103"]
[EventDate "2019.10.19"]
[EventType "team-tourn"]
[EventCountry "SVK"]
[SourceTitle "playchess.com"]
[Source "ChessBase"]
[SourceQuality "1"]
[WhiteTeam "Dubnica"]
[BlackTeam "Dunajov"]
[TimeControl "40/5400+30:1800+30"]

1. d4 {[%emt 0:03:08]} Nf6 {[%emt 0:03:08]} 2. c4 {[%emt 0:00:58]} g6 {[%emt 0:00:59]} 3. Nc3 {[%emt 0:00:05]} Bg7 {[%emt 0:00:29]} 4. e4 {[%emt 0:00:03]} d6 {[%emt 0:00:28]} 5. Nf3 {[%emt 0:00:05]} O-O {[%emt 0:00:18]} 6. Be2 {[%emt 0:00:03]} e5 {[%emt 0:01:16]} 7. d5 {[%emt 0:00:05]} a5 {[%emt 0:05:26]} 8. Bg5 {[%emt 0:00:16]} h6 {[%emt 0:01:37]} 9. Bh4 {[%emt 0:00:05]} Na6 {[%emt 0:01:08]} 10. Nd2 {[%emt 0:00:42]} Nc5 {[%emt 0:05:03]} 11. b3 {[%emt 0:00:35]} Bd7 {[%emt 0:05:43]} 12. O-O {[%emt 0:05:47]} Qe8 {[%emt 0:07:43]} 13. a3 {[%emt 0:01:29]} h5 {[%emt 0:07:19] E92: King's Indian: Classical: 6 Be2 e5: 7 dxe5, 7 Be3 and Petrosian System without 7...Nbd7} (13... Nh7 14. b4 axb4 15. axb4 Rxa1 16. Qxa1 Na6 17. Rb1 f5 18. f3 h5 19. c5 Bh6 20. Bxa6 Bxd2 21. Bxb7 g5 {0-1 (50) Savchenko,B (2567)-Adhiban,B (2674) Berlin 2015}) 14. b4 {[%emt 0:07:02]} axb4 {[%emt 0:02:43]} 15. axb4 {[%emt 0:00:05]} Na4 {[%emt 0:01:08]} 16. Qc1 $146 {[%emt 0:05:15]} ({Predecessor:} 16. Qc2 Nh7 17. f3 Nxc3 18. Qxc3 Rxa1 19. Rxa1 f5 20. c5 g5 21. Bf2 {0-1 (45) Lada,M (2159)-Kamieniecki,T (2016) Warsaw 2010}) 16... Nh7 {[%emt 0:05:17]} 17. f3 {[%emt 0:03:53]} Bh6 {[%emt 0:02:05]} 18. Bf2 {[%emt 0:02:03]} f5 {[%emt 0:07:40]} 19. Bd3 {[%emt 0:04:15]} Nf6 {[%emt 0:11:37]} 20. h3 {[%emt 0:11:54]} Bg5 {[%emt 0:05:38]} 21. c5 {[%emt 0:05:05]} fxe4 {[%emt 0:08:22]} 22. Ncxe4 {[%emt 0:05:18]} Nxe4 {[%emt 0:00:42]} 23. Bxe4 {[%emt 0:00:20]} Bb5 {[%emt 0:00:57]} 24. Re1 {[%emt 0:00:55]} Qf7 {[%emt 0:03:15]} 25. Qc2 {[%emt 0:01:05]} Kg7 $16 {[%emt 0:00:41]} 26. Ra3 {[%emt 0:11:18]} Ra6 {[%emt 0:02:33]} 27. Rea1 {[%emt 0:09:51]} Rfa8 {[%emt 0:00:27]} 28. Nb1 {[%emt 0:01:09]} Qf4 {[%emt 0:06:09]} 29. Bxg6 {[%emt 0:07:11]} Qc1+ {[%emt 0:00:15]} 30. Kh2 {[%emt 0:00:01]} h4 {[%emt 0:02:16]} 31. Bg1 {[%emt 0:00:23]} Qxc2 {[%emt 0:02:26]} 32. Bxc2 {[%emt 0:00:06]} Bf4+ {[%emt 0:00:12]} 33. Kh1 {[%emt 0:00:04]} Bc1 {[%emt 0:00:26]} 34. Bxa4 {[%emt 0:00:18]} Bxa4 {[%emt 0:00:46]} 35. Rd3 {[%emt 0:02:49]} Bb5 {[%emt 0:00:25]} 36. Rxa6 {[%emt 0:00:04]} Rxa6 {[%emt 0:00:13]} 37. Rd1 {[%emt 0:02:34]} Bb2 {[%emt 0:00:22]} 38. Nd2 {[%emt 0:03:36]} Kf7 {[%emt 0:01:16]} 39. Ne4 {[%emt 0:00:16]} Bd7 {[%emt 0:00:31]} 40. Rb1 {[%emt 0:01:13]} Ba3 {[%emt 0:00:29]} 41. Bf2 {[%emt 0:37:36]} Bb5 {[%emt 0:11:46]} 42. cxd6 {[%emt 0:00:00]} cxd6 {[%emt 0:00:19]} 43. Bxh4 {[%emt 0:00:00]} Bc4 {[%emt 0:04:25]} 44. b5 {[%emt 0:00:00]} Ra4 {[%emt 0:08:01]} 45. Ra1 {[%emt 0:00:00]} Bb3 {[%emt 0:02:39]} 46. Nc3 {[%emt 0:00:00]} Rc4 {[%emt 0:02:49]} 47. Ne4 {[%emt 0:00:00]} Ra4 {[%emt 0:00:26]} 48. Be1 {[%emt 0:00:00]} Ke7 {[%emt 0:03:34]} 49. Nc3 {[%emt 0:00:00]} Ra7 {[%emt 0:00:29]} 50. Bf2 {[%emt 0:00:00]} Ra5 {[%emt 0:00:32]} 51. Bb6 {[%emt 0:00:00]} Ra8 {[%emt 0:00:22]} 52. Nb1 {[%emt 0:00:00]} 1-0